[Event "Titled Tuesday Blitz June 20 Early 2023"]
[White "whiteglovethief"]
[Black "Weetik, Vjacheslav"]
[BlackFideId "4153472"]
[WhiteElo "2532"]
[BlackElo "2469"]
[Result "1/2-1/2"]
[Round "2"]
[TimeControl "180+2"]
[Date "2023.06.20"]
[WhiteClock "0:00:21"]
[BlackClock "0:00:09"]
[Board "67"]

1. d4 {[%clk 0:03:00]}  Nf6 {[%clk 0:02:59]} 2. c4 {[%clk 0:03:00]}  e6 {[%clk 0:02:59]} 3. Nf3 {[%clk 0:03:00]}  Bb4+ {[%clk 0:02:58]} 4. Bd2 {[%clk 0:02:59]}  Qe7 {[%clk 0:02:58]} 5. g3 {[%clk 0:02:59]}  Nc6 {[%clk 0:02:56]} 6. a3 {[%clk 0:02:56]}  Bxd2+ {[%clk 0:02:53]} 7. Qxd2 {[%clk 0:02:57]}  e5 {[%clk 0:02:47]} 8. Nc3 {[%clk 0:02:50]}  d6 {[%clk 0:02:35]} 9. Nd5 {[%clk 0:02:46]}  Nxd5 {[%clk 0:02:32]} 10. cxd5 {[%clk 0:02:46]}  Nxd4 {[%clk 0:02:07]} 11. Nxd4 {[%clk 0:02:45]}  exd4 {[%clk 0:02:08]} 12. Qxd4 {[%clk 0:02:45]}  O-O {[%clk 0:02:07]} 13. Bg2 {[%clk 0:02:44]}  Bf5 {[%clk 0:01:51]} 14. e3 {[%clk 0:02:32]}  Bd7 {[%clk 0:00:54]} 15. O-O {[%clk 0:02:23]}  c5 {[%clk 0:00:53]} 16. dxc6 {[%clk 0:02:23]}  Bxc6 {[%clk 0:00:51]} 17. Rfd1 {[%clk 0:02:22]}  Rfd8 {[%clk 0:00:51]} 18. b4 {[%clk 0:02:20]}  a5 {[%clk 0:00:47]} 19. Rac1 {[%clk 0:02:13]}  axb4 {[%clk 0:00:47]} 20. axb4 {[%clk 0:02:11]}  Ra6 {[%clk 0:00:36]} 21. b5 {[%clk 0:01:46]}  Bxb5 {[%clk 0:00:35]} 22. Rb1 {[%clk 0:01:23]}  Bc6 {[%clk 0:00:35]} 23. Bxc6 {[%clk 0:01:16]}  Rxc6 {[%clk 0:00:25]} 24. Rb5 {[%clk 0:01:15]}  h6 {[%clk 0:00:21]} 25. h4 {[%clk 0:01:11]}  Rd7 {[%clk 0:00:20]} 26. Rdb1 {[%clk 0:01:08]}  Rcc7 {[%clk 0:00:16]} 27. Ra5 {[%clk 0:01:05]}  Qe6 {[%clk 0:00:15]} 28. Ra8+ {[%clk 0:01:02]}  Kh7 {[%clk 0:00:16]} 29. Kg2 {[%clk 0:00:58]}  d5 {[%clk 0:00:14]} 30. Rb4 {[%clk 0:00:47]}  Rc4 {[%clk 0:00:13]} 31. Qd3+ {[%clk 0:00:43]}  Qe4+ {[%clk 0:00:13]} 32. Qxe4+ {[%clk 0:00:44]}  Rxe4 {[%clk 0:00:14]} 33. Rxe4 {[%clk 0:00:38]}  dxe4 {[%clk 0:00:14]} 34. Re8 {[%clk 0:00:38]}  f5 {[%clk 0:00:13]} 35. h5 {[%clk 0:00:37]}  b5 {[%clk 0:00:13]} 36. Rb8 {[%clk 0:00:36]}  Rd5 {[%clk 0:00:13]} 37. Kh3 {[%clk 0:00:33]}  f4 {[%clk 0:00:13]} 38. exf4 {[%clk 0:00:28]}  Rxh5+ {[%clk 0:00:13]} 39. Kg4 {[%clk 0:00:29]}  Rc5 {[%clk 0:00:14]} 40. f5 {[%clk 0:00:28]}  Rc2 {[%clk 0:00:13]} 41. Rxb5 {[%clk 0:00:26]}  Rxf2 {[%clk 0:00:13]} 42. Re5 {[%clk 0:00:26]}  e3 {[%clk 0:00:13]} 43. Rxe3 {[%clk 0:00:25]}  Ra2 {[%clk 0:00:12]} 44. Re7 {[%clk 0:00:25]}  Ra4+ {[%clk 0:00:10]} 45. Kh3 {[%clk 0:00:24]}  Kg8 {[%clk 0:00:09]} 46. g4 {[%clk 0:00:24]}  Ra3+ {[%clk 0:00:09]} 47. Kh4 {[%clk 0:00:23]}  Ra6 {[%clk 0:00:10]} 48. Rb7 {[%clk 0:00:23]}  Kh7 {[%clk 0:00:09]} 49. Rc7 {[%clk 0:00:21]}  Kg8 {[%clk 0:00:10]} 50. Rb7 {[%clk 0:00:21]}  Kh7 {[%clk 0:00:09]} 51. Rc7 {[%clk 0:00:20]}  Kg8 {[%clk 0:00:09]} 52. Rb7 {[%clk 0:00:21]} 1/2-1/2


[Site "https://www.chess.com"]

[Event "Titled Tuesday Blitz June 20 Early 2023"]
[White "Yaniuk, Volodymyr"]
[Black "Raja Rithvik R"]
[WhiteFideId "14133083"]
[BlackFideId "35007394"]
[WhiteElo "2141"]
[BlackElo "2395"]
[Result "0-1"]
[Round "2"]
[TimeControl "180+2"]
[Date "2023.06.20"]
[WhiteClock "0:00:00"]
[BlackClock "0:00:04"]
[Board "68"]

1. d4 {[%clk 0:03:00]}  Nf6 {[%clk 0:02:59]} 2. c4 {[%clk 0:03:01]}  e6 {[%clk 0:02:59]} 3. g3 {[%clk 0:03:01]}  d5 {[%clk 0:02:59]} 4. Bg2 {[%clk 0:03:01]}  dxc4 {[%clk 0:03:00]} 5. Nf3 {[%clk 0:03:02]}  Bb4+ {[%clk 0:03:00]} 6. Bd2 {[%clk 0:03:01]}  c5 {[%clk 0:03:01]} 7. dxc5 {[%clk 0:02:58]}  Bxc5 {[%clk 0:03:02]} 8. O-O {[%clk 0:02:57]}  O-O {[%clk 0:03:02]} 9. Qc2 {[%clk 0:02:56]}  Nbd7 {[%clk 0:03:03]} 10. Qxc4 {[%clk 0:02:53]}  b5 {[%clk 0:03:04]} 11. Qc2 {[%clk 0:02:51]}  Bb7 {[%clk 0:03:03]} 12. Nc3 {[%clk 0:02:48]}  Rc8 {[%clk 0:03:00]} 13. a3 {[%clk 0:02:45]}  Qb6 {[%clk 0:02:55]} 14. b4 {[%clk 0:02:42]}  Bd4 {[%clk 0:02:34]} 15. Rac1 {[%clk 0:02:23]}  Bxf3 {[%clk 0:02:21]} 16. Bxf3 {[%clk 0:02:20]}  Ne5 {[%clk 0:02:20]} 17. Qb3 {[%clk 0:02:02]}  Nxf3+ {[%clk 0:01:39]} 18. exf3 {[%clk 0:02:03]}  Rc4 {[%clk 0:01:39]} 19. Na4 {[%clk 0:01:39]}  Qc6 {[%clk 0:01:26]} 20. Nc5 {[%clk 0:01:38]}  Bxc5 {[%clk 0:01:15]} 21. bxc5 {[%clk 0:01:36]}  Rd8 {[%clk 0:01:12]} 22. Bb4 {[%clk 0:01:25]}  Rxc1 {[%clk 0:01:04]} 23. Rxc1 {[%clk 0:01:26]}  h5 {[%clk 0:01:04]} 24. Rd1 {[%clk 0:01:20]}  Nd5 {[%clk 0:01:02]} 25. Rc1 {[%clk 0:01:16]}  h4 {[%clk 0:01:00]} 26. Qd3 {[%clk 0:01:10]}  h3 {[%clk 0:00:59]} 27. Qf1 {[%clk 0:01:06]}  Nxb4 {[%clk 0:00:45]} 28. axb4 {[%clk 0:01:07]}  Rd4 {[%clk 0:00:45]} 29. Qxh3 {[%clk 0:00:59]}  Rxb4 {[%clk 0:00:43]} 30. Qf1 {[%clk 0:00:56]}  Rd4 {[%clk 0:00:36]} 31. Qe2 {[%clk 0:00:47]}  b4 {[%clk 0:00:35]} 32. Qe5 {[%clk 0:00:40]}  Rd8 {[%clk 0:00:27]} 33. Qf4 {[%clk 0:00:24]}  a5 {[%clk 0:00:24]} 34. Qc4 {[%clk 0:00:21]}  Rb8 {[%clk 0:00:22]} 35. Rb1 {[%clk 0:00:20]}  Rb5 {[%clk 0:00:20]} 36. Rd1 {[%clk 0:00:19]}  Rb8 {[%clk 0:00:11]} 37. Qf4 {[%clk 0:00:15]}  Rc8 {[%clk 0:00:11]} 38. Qc4 {[%clk 0:00:14]}  g6 {[%clk 0:00:08]} 39. Rc1 {[%clk 0:00:08]}  Rb8 {[%clk 0:00:07]} 40. Qf4 {[%clk 0:00:05]}  Rb7 {[%clk 0:00:07]} 41. Qd4 {[%clk 0:00:05]}  b3 {[%clk 0:00:07]} 42. Rd1 {[%clk 0:00:03]}  b2 {[%clk 0:00:06]} 43. Qd8+ {[%clk 0:00:02]}  Kg7 {[%clk 0:00:05]} 44. Qd3 {[%clk 0:00:02]}  e5 {[%clk 0:00:05]} 45. Kg2 {[%clk 0:00:03]}  a4 {[%clk 0:00:05]} 46. Rb1 {[%clk 0:00:02]}  Rb3 {[%clk 0:00:05]} 47. Qc4 {[%clk 0:00:00]}  Qxf3+ {[%clk 0:00:04]} 0-1


[Site "https://www.chess.com"]

[Event "Titled Tuesday Blitz June 20 Early 2023"]
[White "Cherniaiev, Tykhon"]
[Black "Ismayil, Malak"]
[WhiteFideId "14182360"]
[BlackFideId "13412604"]
[WhiteElo "2450"]
[BlackElo "1868"]
[Result "1-0"]
[Round "2"]
[TimeControl "180+2"]
[Date "2023.06.20"]
[WhiteClock "0:00:08"]
[BlackClock "0:00:00"]
[Board "73"]

1. Nf3 {[%clk 0:03:00]}  Nf6 {[%clk 0:02:59]} 2. d4 {[%clk 0:02:59]}  d5 {[%clk 0:02:58]} 3. c4 {[%clk 0:03:00]}  e6 {[%clk 0:02:58]} 4. Nc3 {[%clk 0:03:00]}  dxc4 {[%clk 0:02:50]} 5. e4 {[%clk 0:02:59]}  Bb4 {[%clk 0:02:49]} 6. Bg5 {[%clk 0:02:36]}  h6 {[%clk 0:02:45]} 7. Bxf6 {[%clk 0:02:34]}  Qxf6 {[%clk 0:02:46]} 8. Bxc4 {[%clk 0:02:34]}  O-O {[%clk 0:02:42]} 9. O-O {[%clk 0:02:34]}  Rd8 {[%clk 0:02:40]} 10. a3 {[%clk 0:02:33]}  Bxc3 {[%clk 0:02:22]} 11. bxc3 {[%clk 0:02:34]}  c5 {[%clk 0:02:22]} 12. Qe2 {[%clk 0:02:33]}  Nc6 {[%clk 0:02:18]} 13. e5 {[%clk 0:02:21]}  Qf4 {[%clk 0:01:56]} 14. g3 {[%clk 0:02:01]}  Qg4 {[%clk 0:01:49]} 15. Rad1 {[%clk 0:01:49]}  Bd7 {[%clk 0:01:27]} 16. Kg2 {[%clk 0:01:23]}  h5 {[%clk 0:01:13]} 17. Bd3 {[%clk 0:01:12]}  h4 {[%clk 0:01:07]} 18. h3 {[%clk 0:01:06]}  Qh5 {[%clk 0:01:06]} 19. g4 {[%clk 0:01:06]}  Qh6 {[%clk 0:01:05]} 20. Be4 {[%clk 0:00:33]}  Rab8 {[%clk 0:00:56]} 21. Qe3 {[%clk 0:00:31]}  Qxe3 {[%clk 0:00:26]} 22. fxe3 {[%clk 0:00:32]}  Ne7 {[%clk 0:00:27]} 23. Ng5 {[%clk 0:00:25]}  Be8 {[%clk 0:00:26]} 24. Bh7+ {[%clk 0:00:25]}  Kh8 {[%clk 0:00:25]} 25. Bb1 {[%clk 0:00:24]}  Kg8 {[%clk 0:00:20]} 26. c4 {[%clk 0:00:18]}  Rbc8 {[%clk 0:00:17]} 27. Ba2 {[%clk 0:00:11]}  Nc6 {[%clk 0:00:12]} 28. Nf3 {[%clk 0:00:06]}  Na5 {[%clk 0:00:10]} 29. Nxh4 {[%clk 0:00:05]}  cxd4 {[%clk 0:00:09]} 30. Rxd4 {[%clk 0:00:05]}  Rxd4 {[%clk 0:00:09]} 31. exd4 {[%clk 0:00:06]}  Nxc4 {[%clk 0:00:10]} 32. Rf3 {[%clk 0:00:07]}  Nb6 {[%clk 0:00:09]} 33. Rf2 {[%clk 0:00:06]}  Bc6+ {[%clk 0:00:09]} 34. Kg1 {[%clk 0:00:06]}  Bd5 {[%clk 0:00:10]} 35. Bxd5 {[%clk 0:00:06]}  Nxd5 {[%clk 0:00:10]} 36. Rf3 {[%clk 0:00:06]}  Rc1+ {[%clk 0:00:10]} 37. Kg2 {[%clk 0:00:04]}  Rc2+ {[%clk 0:00:11]} 38. Kg1 {[%clk 0:00:05]}  Nc3 {[%clk 0:00:11]} 39. Ng2 {[%clk 0:00:05]}  Ne2+ {[%clk 0:00:11]} 40. Kh2 {[%clk 0:00:05]}  Nxd4 {[%clk 0:00:12]} 41. Rd3 {[%clk 0:00:06]}  Ne2 {[%clk 0:00:10]} 42. Rf3 {[%clk 0:00:04]}  Nc3 {[%clk 0:00:07]} 43. Kg3 {[%clk 0:00:02]}  Nd5 {[%clk 0:00:06]} 44. Nh4 {[%clk 0:00:01]}  Rc3 {[%clk 0:00:06]} 45. Ng2 {[%clk 0:00:01]}  Rc5 {[%clk 0:00:05]} 46. Rd3 {[%clk 0:00:01]}  Kf8 {[%clk 0:00:05]} 47. Ne1 {[%clk 0:00:02]}  Rc1 {[%clk 0:00:04]} 48. Nf3 {[%clk 0:00:02]}  Ke7 {[%clk 0:00:04]} 49. Rd4 {[%clk 0:00:03]}  Rc3 {[%clk 0:00:04]} 50. a4 {[%clk 0:00:03]}  a5 {[%clk 0:00:04]} 51. h4 {[%clk 0:00:03]}  Rb3 {[%clk 0:00:04]} 52. h5 {[%clk 0:00:03]}  Rb4 {[%clk 0:00:05]} 53. g5 {[%clk 0:00:04]}  Rb3 {[%clk 0:00:04]} 54. Kg4 {[%clk 0:00:04]}  Rb1 {[%clk 0:00:04]} 55. Kg3 {[%clk 0:00:03]}  Rb2 {[%clk 0:00:04]} 56. h6 {[%clk 0:00:04]}  gxh6 {[%clk 0:00:03]} 57. gxh6 {[%clk 0:00:05]}  Kf8 {[%clk 0:00:03]} 58. Rg4 {[%clk 0:00:05]}  Ne7 {[%clk 0:00:03]} 59. h7 {[%clk 0:00:05]}  Nf5+ {[%clk 0:00:02]} 60. Kh3 {[%clk 0:00:04]}  Ke7 {[%clk 0:00:02]} 61. h8=Q {[%clk 0:00:05]}  Rb3 {[%clk 0:00:03]} 62. Qf6+ {[%clk 0:00:05]}  Ke8 {[%clk 0:00:03]} 63. Rg8+ {[%clk 0:00:06]}  Kd7 {[%clk 0:00:04]} 64. Qxf7+ {[%clk 0:00:06]}  Ne7 {[%clk 0:00:04]} 65. Qe8+ {[%clk 0:00:07]}  Kc7 {[%clk 0:00:04]} 66. Qxe7+ {[%clk 0:00:07]}  Kb6 {[%clk 0:00:00]} 67. Qxe6+ {[%clk 0:00:08]} 1-0


[Site "https://www.chess.com"]

[Event "Titled Tuesday Blitz June 20 Early 2023"]
[White "Seo, Jung Min"]
[Black "Sharapov, Evgeny"]
[WhiteFideId "1734687"]
[BlackFideId "14103133"]
[WhiteElo "2468"]
[BlackElo "2367"]
[Result "1/2-1/2"]
[Round "2"]
[TimeControl "180+2"]
[Date "2023.06.20"]
[WhiteClock "0:00:10"]
[BlackClock "0:00:44"]
[Board "75"]

1. e4 {[%clk 0:03:00]}  c5 {[%clk 0:03:00]} 2. Nf3 {[%clk 0:03:00]}  d6 {[%clk 0:03:00]} 3. d4 {[%clk 0:03:00]}  cxd4 {[%clk 0:03:00]} 4. Qxd4 {[%clk 0:02:59]}  e5 {[%clk 0:03:00]} 5. Qd3 {[%clk 0:02:58]}  h6 {[%clk 0:02:59]} 6. c4 {[%clk 0:02:56]}  Nf6 {[%clk 0:02:59]} 7. Nc3 {[%clk 0:02:57]}  Be7 {[%clk 0:02:59]} 8. Be2 {[%clk 0:02:56]}  O-O {[%clk 0:02:59]} 9. O-O {[%clk 0:02:56]}  Nbd7 {[%clk 0:02:59]} 10. Be3 {[%clk 0:02:55]}  a6 {[%clk 0:02:59]} 11. Rfd1 {[%clk 0:02:53]}  Qc7 {[%clk 0:02:58]} 12. h3 {[%clk 0:02:50]}  Nc5 {[%clk 0:02:58]} 13. Qc2 {[%clk 0:02:49]}  b6 {[%clk 0:02:57]} 14. b4 {[%clk 0:02:41]}  Ncd7 {[%clk 0:02:57]} 15. Rac1 {[%clk 0:02:38]}  Bb7 {[%clk 0:02:56]} 16. Nd2 {[%clk 0:02:23]}  Rac8 {[%clk 0:02:53]} 17. a3 {[%clk 0:02:23]}  Rfe8 {[%clk 0:02:49]} 18. Qb2 {[%clk 0:02:22]}  Qb8 {[%clk 0:02:48]} 19. Qb1 {[%clk 0:02:21]}  Qa8 {[%clk 0:02:44]} 20. Bd3 {[%clk 0:02:13]}  Rc7 {[%clk 0:02:40]} 21. Nd5 {[%clk 0:02:00]}  Nxd5 {[%clk 0:02:40]} 22. cxd5 {[%clk 0:02:01]}  Rec8 {[%clk 0:02:39]} 23. Rxc7 {[%clk 0:02:00]}  Rxc7 {[%clk 0:02:40]} 24. Nc4 {[%clk 0:01:59]}  b5 {[%clk 0:02:34]} 25. Na5 {[%clk 0:01:59]}  Qc8 {[%clk 0:02:27]} 26. Rc1 {[%clk 0:01:54]}  Rxc1+ {[%clk 0:02:26]} 27. Qxc1 {[%clk 0:01:53]}  Qxc1+ {[%clk 0:02:23]} 28. Bxc1 {[%clk 0:01:54]}  Bc8 {[%clk 0:02:22]} 29. g3 {[%clk 0:01:50]}  Nb6 {[%clk 0:02:13]} 30. Kg2 {[%clk 0:01:49]}  f5 {[%clk 0:02:10]} 31. f3 {[%clk 0:01:47]}  fxe4 {[%clk 0:02:09]} 32. fxe4 {[%clk 0:01:47]}  Bg5 {[%clk 0:02:09]} 33. Bxg5 {[%clk 0:01:28]}  hxg5 {[%clk 0:02:09]} 34. Be2 {[%clk 0:01:24]}  Kf7 {[%clk 0:02:02]} 35. h4 {[%clk 0:01:23]}  gxh4 {[%clk 0:02:01]} 36. gxh4 {[%clk 0:01:23]}  Kf6 {[%clk 0:01:54]} 37. Nc6 {[%clk 0:01:14]}  Bd7 {[%clk 0:01:27]} 38. Nb8 {[%clk 0:01:10]}  Bc8 {[%clk 0:01:26]} 39. Kg3 {[%clk 0:01:08]}  Nc4 {[%clk 0:01:23]} 40. Bxc4 {[%clk 0:00:55]}  bxc4 {[%clk 0:01:23]} 41. Kf2 {[%clk 0:00:56]}  c3 {[%clk 0:01:18]} 42. Ke3 {[%clk 0:00:56]}  Kg6 {[%clk 0:01:19]} 43. Nc6 {[%clk 0:00:49]}  Kh5 {[%clk 0:01:17]} 44. Ne7 {[%clk 0:00:49]}  Bd7 {[%clk 0:01:15]} 45. Nf5 {[%clk 0:00:44]}  g6 {[%clk 0:01:01]} 46. Nxd6 {[%clk 0:00:43]}  Kxh4 {[%clk 0:01:01]} 47. Nf7 {[%clk 0:00:42]}  g5 {[%clk 0:00:52]} 48. Nxe5 {[%clk 0:00:41]}  Bb5 {[%clk 0:00:52]} 49. d6 {[%clk 0:00:31]}  g4 {[%clk 0:00:52]} 50. d7 {[%clk 0:00:29]}  Bxd7 {[%clk 0:00:52]} 51. Nxd7 {[%clk 0:00:30]}  c2 {[%clk 0:00:46]} 52. Kd2 {[%clk 0:00:29]}  g3 {[%clk 0:00:46]} 53. Ne5 {[%clk 0:00:28]}  g2 {[%clk 0:00:47]} 54. Nf3+ {[%clk 0:00:18]}  Kg3 {[%clk 0:00:47]} 55. Ng1 {[%clk 0:00:19]}  Kf2 {[%clk 0:00:46]} 56. Nh3+ {[%clk 0:00:15]}  Kg3 {[%clk 0:00:43]} 57. Ng1 {[%clk 0:00:14]}  Kf2 {[%clk 0:00:44]} 58. Nh3+ {[%clk 0:00:11]}  Kg3 {[%clk 0:00:44]} 59. Ng1 {[%clk 0:00:10]} 1/2-1/2


[Site "https://www.chess.com"]

[Event "Titled Tuesday Blitz June 20 Early 2023"]
[White "Yuan, Qingyu"]
[Black "Horak, Martin"]
[WhiteFideId "8609772"]
[BlackFideId "367095"]
[WhiteElo "2359"]
[BlackElo "2091"]
[Result "1-0"]
[Round "2"]
[TimeControl "180+2"]
[Date "2023.06.20"]
[WhiteClock "0:00:04"]
[BlackClock "0:00:01"]
[Board "76"]

1. e4 {[%clk 0:03:00]}  c5 {[%clk 0:03:00]} 2. Nf3 {[%clk 0:03:01]}  Nc6 {[%clk 0:03:00]} 3. Bb5 {[%clk 0:03:01]}  d6 {[%clk 0:02:59]} 4. O-O {[%clk 0:03:01]}  Bd7 {[%clk 0:02:59]} 5. Re1 {[%clk 0:03:02]}  Nf6 {[%clk 0:02:59]} 6. c3 {[%clk 0:03:02]}  a6 {[%clk 0:02:59]} 7. Bf1 {[%clk 0:03:01]}  Bg4 {[%clk 0:03:00]} 8. h3 {[%clk 0:03:01]}  Bh5 {[%clk 0:03:00]} 9. g4 {[%clk 0:02:57]}  Bg6 {[%clk 0:03:00]} 10. d4 {[%clk 0:02:58]}  cxd4 {[%clk 0:02:59]} 11. cxd4 {[%clk 0:02:59]}  d5 {[%clk 0:03:00]} 12. e5 {[%clk 0:02:25]}  Ne4 {[%clk 0:02:58]} 13. Nc3 {[%clk 0:02:18]}  e6 {[%clk 0:02:41]} 14. Bd3 {[%clk 0:02:06]}  Nxc3 {[%clk 0:02:36]} 15. bxc3 {[%clk 0:02:07]}  Bxd3 {[%clk 0:02:19]} 16. Qxd3 {[%clk 0:02:08]}  Na5 {[%clk 0:02:19]} 17. Bg5 {[%clk 0:01:47]}  Be7 {[%clk 0:02:12]} 18. h4 {[%clk 0:01:47]}  Nc4 {[%clk 0:02:02]} 19. Kg2 {[%clk 0:01:43]}  Rc8 {[%clk 0:01:53]} 20. Rab1 {[%clk 0:01:39]}  h6 {[%clk 0:01:49]} 21. Bxe7 {[%clk 0:01:31]}  Qxe7 {[%clk 0:01:50]} 22. Rb4 {[%clk 0:01:08]}  a5 {[%clk 0:01:43]} 23. Rb3 {[%clk 0:01:04]}  Qd7 {[%clk 0:01:35]} 24. g5 {[%clk 0:00:51]}  hxg5 {[%clk 0:01:30]} 25. hxg5 {[%clk 0:00:51]}  b6 {[%clk 0:00:55]} 26. Rbb1 {[%clk 0:00:45]}  Kd8 {[%clk 0:00:51]} 27. Rh1 {[%clk 0:00:35]}  Kc7 {[%clk 0:00:51]} 28. Rh7 {[%clk 0:00:35]}  Rcg8 {[%clk 0:00:28]} 29. Rbh1 {[%clk 0:00:24]}  Qe8 {[%clk 0:00:28]} 30. g6 {[%clk 0:00:18]}  fxg6 {[%clk 0:00:24]} 31. Ng5 {[%clk 0:00:17]}  Kd7 {[%clk 0:00:20]} 32. Rxh8 {[%clk 0:00:17]}  Rxh8 {[%clk 0:00:20]} 33. Rxh8 {[%clk 0:00:18]}  Qxh8 {[%clk 0:00:20]} 34. Qxg6 {[%clk 0:00:18]}  Qg8 {[%clk 0:00:15]} 35. Nh7 {[%clk 0:00:19]}  Ke7 {[%clk 0:00:09]} 36. Ng5 {[%clk 0:00:19]}  Kd7 {[%clk 0:00:09]} 37. Kg3 {[%clk 0:00:19]}  b5 {[%clk 0:00:07]} 38. f4 {[%clk 0:00:18]}  b4 {[%clk 0:00:07]} 39. f5 {[%clk 0:00:17]}  exf5 {[%clk 0:00:08]} 40. Qxf5+ {[%clk 0:00:17]}  Kc6 {[%clk 0:00:08]} 41. cxb4 {[%clk 0:00:16]}  axb4 {[%clk 0:00:08]} 42. e6 {[%clk 0:00:16]}  Nd6 {[%clk 0:00:07]} 43. Qe5 {[%clk 0:00:16]}  Qe8 {[%clk 0:00:05]} 44. e7 {[%clk 0:00:15]}  Kd7 {[%clk 0:00:05]} 45. Qe6+ {[%clk 0:00:15]}  Kc7 {[%clk 0:00:05]} 46. Kg4 {[%clk 0:00:09]}  g6 {[%clk 0:00:05]} 47. Kg3 {[%clk 0:00:04]}  Qxe7 {[%clk 0:00:01]} 48. Qxe7+ {[%clk 0:00:04]} 1-0


[Site "https://www.chess.com"]

[Event "Titled Tuesday Blitz June 20 Early 2023"]
[White "Gorovets, Andrey"]
[Black "Ljukin, Sergei"]
[WhiteFideId "13504037"]
[BlackFideId "14102200"]
[WhiteElo "2459"]
[BlackElo "2312"]
[Result "0-1"]
[Round "2"]
[TimeControl "180+2"]
[Date "2023.06.20"]
[WhiteClock "0:00:00"]
[BlackClock "0:00:05"]
[Board "80"]

1. c4 {[%clk 0:03:00]}  c6 {[%clk 0:02:59]} 2. g3 {[%clk 0:03:00]}  d5 {[%clk 0:03:00]} 3. Nf3 {[%clk 0:03:00]}  Nf6 {[%clk 0:03:00]} 4. Bg2 {[%clk 0:03:00]}  Bf5 {[%clk 0:03:00]} 5. Qb3 {[%clk 0:02:58]}  Qb6 {[%clk 0:02:55]} 6. d3 {[%clk 0:02:58]}  Qxb3 {[%clk 0:02:54]} 7. axb3 {[%clk 0:02:59]}  Nbd7 {[%clk 0:02:48]} 8. Be3 {[%clk 0:02:54]}  e5 {[%clk 0:02:40]} 9. Rxa7 {[%clk 0:02:44]}  Rxa7 {[%clk 0:02:39]} 10. Bxa7 {[%clk 0:02:45]}  Bb4+ {[%clk 0:02:35]} 11. Nfd2 {[%clk 0:02:38]}  d4 {[%clk 0:02:16]} 12. f4 {[%clk 0:02:24]}  c5 {[%clk 0:01:58]} 13. Bxb7 {[%clk 0:02:17]}  O-O {[%clk 0:01:57]} 14. O-O {[%clk 0:02:13]}  Bh3 {[%clk 0:01:56]} 15. Rd1 {[%clk 0:02:07]}  exf4 {[%clk 0:01:51]} 16. gxf4 {[%clk 0:02:08]}  Re8 {[%clk 0:01:49]} 17. Ne4 {[%clk 0:02:06]}  Nxe4 {[%clk 0:01:47]} 18. dxe4 {[%clk 0:02:02]}  Re7 {[%clk 0:01:40]} 19. Bc6 {[%clk 0:01:39]}  Nf6 {[%clk 0:01:38]} 20. Bb8 {[%clk 0:01:34]}  Nxe4 {[%clk 0:01:33]} 21. Na3 {[%clk 0:01:18]}  Re6 {[%clk 0:00:46]} 22. Bxe4 {[%clk 0:01:02]}  Rxe4 {[%clk 0:00:46]} 23. Nc2 {[%clk 0:00:50]}  Rxe2 {[%clk 0:00:20]} 24. Nxb4 {[%clk 0:00:50]}  cxb4 {[%clk 0:00:21]} 25. Rxd4 {[%clk 0:00:48]}  h5 {[%clk 0:00:20]} 26. f5 {[%clk 0:00:19]}  Rg2+ {[%clk 0:00:20]} 27. Kh1 {[%clk 0:00:19]}  Rxb2 {[%clk 0:00:20]} 28. Kg1 {[%clk 0:00:20]}  Rg2+ {[%clk 0:00:20]} 29. Kh1 {[%clk 0:00:20]}  Rb2 {[%clk 0:00:16]} 30. Kg1 {[%clk 0:00:19]}  Rxb3 {[%clk 0:00:17]} 31. f6 {[%clk 0:00:20]}  gxf6 {[%clk 0:00:16]} 32. c5 {[%clk 0:00:20]}  Rf3 {[%clk 0:00:13]} 33. Rf4 {[%clk 0:00:20]}  Rxf4 {[%clk 0:00:13]} 34. Bxf4 {[%clk 0:00:19]}  Bd7 {[%clk 0:00:11]} 35. Kf2 {[%clk 0:00:15]}  Bc6 {[%clk 0:00:10]} 36. Kg3 {[%clk 0:00:16]}  Kh7 {[%clk 0:00:10]} 37. Bc1 {[%clk 0:00:16]}  Kg6 {[%clk 0:00:09]} 38. Kf4 {[%clk 0:00:15]}  b3 {[%clk 0:00:09]} 39. Bb2 {[%clk 0:00:16]}  f5 {[%clk 0:00:08]} 40. h4 {[%clk 0:00:16]}  Be4 {[%clk 0:00:08]} 41. Bc3 {[%clk 0:00:16]}  Bd5 {[%clk 0:00:08]} 42. Bb2 {[%clk 0:00:16]}  Bc6 {[%clk 0:00:08]} 43. Bc3 {[%clk 0:00:16]}  Bd7 {[%clk 0:00:08]} 44. Bb2 {[%clk 0:00:16]}  Kh7 {[%clk 0:00:02]} 45. Bc3 {[%clk 0:00:13]}  Kg8 {[%clk 0:00:03]} 46. Bf6 {[%clk 0:00:08]}  Kf8 {[%clk 0:00:03]} 47. Kg5 {[%clk 0:00:08]}  Ke8 {[%clk 0:00:02]} 48. Kf4 {[%clk 0:00:09]}  Be6 {[%clk 0:00:01]} 49. Bb2 {[%clk 0:00:09]}  Kd7 {[%clk 0:00:01]} 50. Ba1 {[%clk 0:00:07]}  Kc6 {[%clk 0:00:02]} 51. Bb2 {[%clk 0:00:08]}  Kxc5 {[%clk 0:00:02]} 52. Ke3 {[%clk 0:00:06]}  Kc4 {[%clk 0:00:02]} 53. Ba1 {[%clk 0:00:06]}  Kb4 {[%clk 0:00:03]} 54. Bb2 {[%clk 0:00:06]}  Bd7 {[%clk 0:00:03]} 55. Kf4 {[%clk 0:00:02]}  Kc4 {[%clk 0:00:04]} 56. Ke3 {[%clk 0:00:02]}  f4+ {[%clk 0:00:04]} 57. Kxf4 {[%clk 0:00:00]}  Kd3 {[%clk 0:00:05]} 0-1


[Site "https://www.chess.com"]

[Event "Titled Tuesday Blitz June 20 Early 2023"]
[White "Amilal Munkhdalai"]
[Black "Kokoszczynski, Jan"]
[WhiteFideId "4903250"]
[BlackFideId "1174460"]
[WhiteElo "2293"]
[BlackElo "2139"]
[Result "1-0"]
[Round "2"]
[TimeControl "180+2"]
[Date "2023.06.20"]
[WhiteClock "0:00:54"]
[BlackClock "0:00:02"]
[Board "81"]

1. e4 {[%clk 0:03:00]}  e5 {[%clk 0:02:55]} 2. Nf3 {[%clk 0:03:00]}  Nc6 {[%clk 0:02:55]} 3. Bb5 {[%clk 0:03:00]}  a6 {[%clk 0:02:52]} 4. Ba4 {[%clk 0:03:00]}  Nf6 {[%clk 0:02:52]} 5. d3 {[%clk 0:03:00]}  d6 {[%clk 0:02:49]} 6. c3 {[%clk 0:02:59]}  g6 {[%clk 0:02:49]} 7. O-O {[%clk 0:02:58]}  Bg7 {[%clk 0:02:49]} 8. Re1 {[%clk 0:02:55]}  O-O {[%clk 0:02:49]} 9. d4 {[%clk 0:02:55]}  Nd7 {[%clk 0:02:42]} 10. Nbd2 {[%clk 0:02:50]}  b5 {[%clk 0:02:34]} 11. Bb3 {[%clk 0:02:49]}  exd4 {[%clk 0:02:34]} 12. Bd5 {[%clk 0:02:49]}  Bb7 {[%clk 0:02:34]} 13. Nxd4 {[%clk 0:02:32]}  Nxd4 {[%clk 0:02:14]} 14. Bxb7 {[%clk 0:02:31]}  Ra7 {[%clk 0:02:14]} 15. Bd5 {[%clk 0:02:05]}  Ne6 {[%clk 0:02:00]} 16. Nf3 {[%clk 0:02:02]}  Ne5 {[%clk 0:00:54]} 17. Be3 {[%clk 0:01:51]}  c5 {[%clk 0:00:52]} 18. a4 {[%clk 0:01:43]}  Re7 {[%clk 0:00:32]} 19. axb5 {[%clk 0:01:36]}  axb5 {[%clk 0:00:33]} 20. Nxe5 {[%clk 0:01:32]}  Bxe5 {[%clk 0:00:31]} 21. g3 {[%clk 0:01:27]}  Nc7 {[%clk 0:00:19]} 22. Bg5 {[%clk 0:01:26]}  Nxd5 {[%clk 0:00:17]} 23. Qxd5 {[%clk 0:01:25]}  Qe8 {[%clk 0:00:06]} 24. Bxe7 {[%clk 0:01:19]}  Qxe7 {[%clk 0:00:06]} 25. Ra8 {[%clk 0:01:14]}  b4 {[%clk 0:00:06]} 26. Rxf8+ {[%clk 0:01:11]}  Qxf8 {[%clk 0:00:06]} 27. cxb4 {[%clk 0:01:11]}  cxb4 {[%clk 0:00:07]} 28. b3 {[%clk 0:01:12]}  Qc8 {[%clk 0:00:05]} 29. Rd1 {[%clk 0:01:08]}  Qc2 {[%clk 0:00:05]} 30. Qd3 {[%clk 0:01:07]}  Qc5 {[%clk 0:00:05]} 31. Kg2 {[%clk 0:01:07]}  g5 {[%clk 0:00:05]} 32. Rd2 {[%clk 0:01:03]}  h6 {[%clk 0:00:05]} 33. Ra2 {[%clk 0:01:02]}  Kg7 {[%clk 0:00:05]} 34. Rc2 {[%clk 0:00:58]}  Qb6 {[%clk 0:00:05]} 35. Qd5 {[%clk 0:00:56]}  Bd4 {[%clk 0:00:05]} 36. Rc6 {[%clk 0:00:55]}  Qa7 {[%clk 0:00:04]} 37. Qxd6 {[%clk 0:00:54]}  Bc3 {[%clk 0:00:02]} 38. Qxh6+ {[%clk 0:00:53]}  Kg8 {[%clk 0:00:02]} 39. Rc8# {[%clk 0:00:54]} 1-0


[Site "https://www.chess.com"]